bitfinex/quotes_ETHUSD_20250123
["timestamp","ask_amount","ask_price","bid_price","bid_amount"]
[1737667490512,0.61575906,3246.2,3244.0,0.55]
[1737667490679,0.61575906,3246.2,3244.0,3.55]
[1737667490879,3.55,3246.9,3244.0,3.0]
[1737667491208,0.55,3246.7,3244.3,3.08231]
[1737667491393,0.55,3246.7,3244.5,3.0]
[1737667491782,0.55,3246.7,3244.7,3.0]
[1737667492305,0.55,3246.7,3244.5,3.0]
[1737667492507,0.55,3246.7,3244.7,3.0]
[1737667492712,0.61964158,3246.0,3244.8,0.608203]
[1737667493015,0.61964158,3246.0,3244.7,3.0]
[1737667493209,0.61964158,3246.0,3244.9,3.0]
[1737667493570,0.55,3246.8,3244.9,3.0]
[1737667493771,0.6155838,3251.0,3245.0,3.0816]
[1737667493772,0.60275963,3246.3,3245.0,3.0816]
[1737667494113,0.60275963,3246.3,3244.1,6.80107817]
[1737667494114,0.15443203,3247.5,3245.3,3.0]
[1737667494269,0.10070083,3247.8,3245.3,3.0]
[1737667494471,0.62580288,3247.4,3245.1,0.60816]
[1737667494770,0.62580288,3247.4,3244.7,0.8017]
[1737667494771,0.62580288,3247.4,3245.7,3.0]
[1737667494967,0.62580288,3247.4,3245.9,3.0]
[1737667495170,0.55,3247.3,3245.7,3.0]
[1737667495371,0.55,3247.3,3245.5,3.0]
[1737667496177,0.55,3247.3,3245.5,6.08116]
[1737667496513,0.614959,3246.9,3245.7,3.0]
[1737667496711,0.614959,3246.9,3245.6,0.916243]
[1737667497215,0.55,3246.8,3245.3,3.0]
[1737667497516,0.55,3246.8,3245.1,3.08156]
[1737667498089,0.55,3246.8,3245.2,6.08141]
[1737667498303,0.55,3246.8,3245.2,3.0]
[1737667498487,0.55,3247.3,3244.9,3.08175]
[1737667498698,0.55,3247.3,3245.0,0.308175]
[1737667499839,0.61464715,3246.2,3245.0,3.308175]
[1737667500409,0.55,3246.1,3245.0,0.308175]
[1737667500611,0.55,3246.1,3244.3,3.08226]
[1737667500807,0.55,3246.1,3243.9,3.8544]
[1737667501008,0.55,3246.3,3243.8,0.63048159]
[1737667501207,0.29692877,3245.9,3243.9,3.10202562]
[1737667501408,3.29692877,3245.9,3243.3,3.08324]
[1737667501718,0.61883681,3245.0,3243.2,3.61298361]
[1737667502021,3.29692877,3245.9,3243.2,3.61298361]
[1737667502022,3.29297602,3247.0,3244.6,3.0]
[1737667502221,3.29297602,3247.0,3244.9,3.0]
[1737667502422,3.29297602,3247.0,3244.8,3.0818]
[1737667502630,3.29297602,3247.0,3244.9,0.616366]
[1737667502792,0.60688397,3246.1,3245.0,3.0]
[1737667502994,0.60688397,3246.1,3244.9,0.616366]
[1737667503208,0.15234334,3247.0,3244.9,0.616366]
[1737667503414,3.29297602,3247.5,3245.1,3.0]
[1737667503624,3.0,3247.4,3245.4,3.0]
[1737667503827,0.61202097,3246.5,3245.4,3.08119]
[1737667504126,0.61202097,3246.5,3245.2,0.608166]
[1737667504327,0.61202097,3246.5,3245.4,3.08119]
[1737667504495,0.61202097,3246.5,3245.3,3.0]
[1737667504681,0.55,3246.4,3244.9,0.616366]
[1737667504882,0.55,3246.4,3244.4,3.0822]
[1737667505497,0.55,3246.8,3244.5,3.0]
[1737667506029,0.55,3246.8,3244.4,3.0822]
[1737667506030,0.33505536,3247.2,3244.2,0.55]
[1737667506230,0.10070083,3247.8,3245.4,3.08127]
[1737667506400,0.10070083,3247.8,3245.7,3.0]
[1737667506597,0.10070083,3247.8,3245.6,3.08104]
[1737667506598,0.10070083,3247.8,3245.9,3.0]
[1737667506799,0.63149913,3247.7,3245.8,0.608104]
[1737667507424,0.63149913,3247.7,3246.4,3.0]
[1737667507628,0.63149913,3247.7,3245.2,0.7611]
[1737667507978,0.63149913,3247.7,3245.8,3.0]
[1737667508129,0.55,3247.6,3245.8,3.0]
[1737667508426,0.55,3247.6,3246.0,3.0]
[1737667508633,0.10070083,3247.8,3246.1,0.608072]
[1737667508785,0.10070083,3247.8,3245.4,3.08122]
[1737667509146,0.61208261,3247.1,3244.8,0.60690488]
[1737667509309,0.6302047,3247.7,3245.1,0.7611]
[1737667509487,0.6302047,3247.7,3246.1,3.0]
[1737667510242,0.6302047,3247.7,3244.3,0.74896953]
[1737667510538,0.6302047,3247.7,3245.8,3.08088]
[1737667510895,0.55,3247.6,3245.9,3.0]
[1737667511092,0.55,3247.6,3245.1,3.7611]
[1737667511290,0.55,3247.7,3245.1,4.3904116]
[1737667511700,0.55,3246.8,3245.1,3.08149]
[1737667511907,0.61828618,3246.9,3245.3,3.0]
[1737667512401,2.79948102,3247.7,3245.5,3.08114]
[1737667512603,0.60978613,3247.0,3245.6,3.08107]
[1737667512804,0.60978613,3247.0,3245.1,0.308149]
[1737667513118,0.60978613,3247.0,3245.5,3.08116]
[1737667513708,0.60978613,3247.0,3245.3,3.0]
[1737667514104,0.60978613,3247.0,3245.1,3.0]
[1737667514347,0.60978613,3247.0,3245.0,3.0]
[1737667514951,0.60978613,3247.0,3245.3,3.0]
[1737667515158,0.60978613,3247.0,3245.7,3.0]
[1737667515953,0.005,3247.7,3245.5,3.0]
[1737667516249,0.62347096,3247.7,3246.4,3.0]
[1737667516447,0.62347096,3247.7,3246.4,3.08031]
[1737667516611,0.62347096,3247.7,3246.5,0.308031]
[1737667516954,0.62347096,3247.7,3246.5,3.308031]
[1737667517425,0.62347096,3247.7,3246.5,0.308031]
[1737667518146,0.62347096,3247.7,3245.4,3.08122]
[1737667518346,0.62347096,3247.7,3245.8,3.0]
[1737667518531,0.62347096,3247.7,3246.2,3.0]
[1737667518733,0.62347096,3247.7,3245.3,1.98335143]
[1737667518734,0.62347096,3247.7,3246.3,3.08042]
[1737667518970,0.62347096,3247.7,3246.4,3.0]
[1737667519178,0.62347096,3247.7,3246.5,0.608042]
[1737667519465,0.62347096,3247.7,3246.7,3.0]
[1737667520363,0.62347096,3247.7,3246.5,0.608042]
[1737667520748,0.005,3247.7,3246.5,0.608042]
[1737667520950,0.005,3247.7,3247.1,3.0]
[1737667521153,0.005,3247.7,3247.1,6.07966]
[1737667521470,0.005,3247.7,3247.0,6.07975]
[1737667523182,0.005,3247.7,3247.0,3.0]
[1737667523359,0.005,3247.7,3246.7,6.08001]
[1737667523555,0.005,3247.7,3246.7,0.308013]
[1737667523799,0.005,3247.7,3247.0,3.0]
[1737667524902,0.005,3247.7,3246.7,3.308013]
[1737667525696,0.005,3247.7,3246.7,3.388033]
[1737667525857,0.005,3247.7,3246.8,0.3388033]
[1737667526760,0.55,3247.6,3245.3,0.608143]
[1737667526966,0.89997202,3247.6,3245.2,3.08147]
[1737667527225,0.34997202,3247.5,3245.2,3.08147]
[1737667527401,0.62353339,3246.6,3245.2,3.0]
[1737667527711,3.23602714,3247.7,3245.1,3.08156]
[1737667528013,0.61484925,3246.7,3245.2,0.308156]
[1737667528233,0.61484925,3246.7,3244.8,3.21578005]
[1737667528673,0.55,3247.0,3244.8,3.21578005]
[1737667529471,0.55,3247.0,3244.8,6.29758005]
[1737667529674,3.73602714,3247.7,3244.9,6.08174]
[1737667529974,3.58599916,3247.7,3245.4,3.0]
[1737667530187,3.58599916,3247.7,3245.5,0.608131]
[1737667530575,0.62131616,3246.6,3245.5,0.608131]
[1737667531427,0.55,3247.6,3245.6,3.0]
[1737667531596,0.55,3247.6,3245.5,0.608131]
[1737667531907,0.62835418,3246.7,3245.5,0.608131]
[1737667532209,0.62835418,3246.7,3245.6,0.3689351]
[1737667532875,0.62835418,3246.7,3245.5,0.608131]
[1737667533075,0.62835418,3246.7,3244.9,3.08168]
[1737667533285,3.55,3247.6,3244.7,5.29892]
[1737667533572,0.60894532,3246.2,3244.9,3.08175]
[1737667533774,0.34997202,3247.5,3245.0,3.0]
[1737667533979,3.38984415,3247.7,3245.6,3.0]
[1737667534337,0.005,3247.7,3246.4,3.0]
[1737667534478,0.005,3247.7,3246.1,3.0]
[1737667534673,0.005,3247.7,3246.3,3.0]
[1737667534878,0.61436748,3247.6,3245.7,0.608113]
[1737667535097,0.61436748,3247.6,3246.3,3.0]
[1737667535408,0.61436748,3247.6,3246.4,0.608044]
[1737667535569,0.005,3247.7,3246.4,0.608044]
[1737667535772,0.60883124,3247.7,3246.3,3.0804]
[1737667537277,0.60883124,3247.7,3245.7,3.689073]
[1737667537617,0.60883124,3247.7,3245.8,3.0809]
[1737667537817,0.005,3247.7,3245.8,3.08089]
[1737667538005,0.005,3247.7,3245.9,3.08073]
[1737667538240,0.005,3247.7,3246.0,0.616162]
[1737667539046,0.6128911,3247.1,3246.0,0.616162]
[1737667539938,0.55,3247.0,3244.9,3.08169]
[1737667540459,0.55,3246.7,3244.3,3.68441052]
[1737667540762,0.55,3246.3,3244.1,2.217]
[1737667540931,0.62219319,3245.4,3244.1,2.217]
[1737667541459,0.62219319,3245.4,3244.1,5.29951]
[1737667541659,0.62219319,3245.4,3244.1,2.217]
[1737667541969,0.27,3275.2,3244.2,0.2217]
[1737667541970,2.79763845,3246.4,3244.2,0.2217]
[1737667542258,0.55,3246.3,3244.4,6.08221]
[1737667542457,0.55,3246.3,3244.4,3.08221]
[1737667542659,0.62884635,3246.2,3244.6,3.08201]
[1737667542956,0.62884635,3246.2,3244.9,3.08175]
[1737667543157,0.62884635,3246.2,3245.0,3.308175]
[1737667543460,0.62884635,3246.2,3245.0,0.308175]
[1737667543661,0.62884635,3246.2,3244.8,3.08185]
[1737667544662,0.62884635,3246.2,3244.2,3.9874]
[1737667544663,0.62884635,3246.2,3245.6,3.0]
[1737667544864,0.15657251,3247.5,3245.5,3.0]
[1737667545157,3.23418559,3247.6,3245.5,6.08118]
[1737667545158,0.55,3247.4,3245.5,6.08118]
[1737667545730,0.63153287,3246.4,3245.5,6.08118]
[1737667546073,0.63153287,3246.4,3245.2,3.08144]
[1737667546074,0.63153287,3246.4,3245.6,0.608118]
[1737667546277,0.63153287,3246.4,3245.0,3.0]
[1737667546473,0.63153287,3246.4,3245.2,3.0]
[1737667546827,0.63153287,3246.4,3245.1,6.08155]
[1737667547027,0.63153287,3246.4,3245.1,3.0]
[1737667547574,0.63153287,3246.4,3245.1,3.08156]
[1737667547759,0.63153287,3246.4,3245.2,0.308156]
[1737667547954,0.63153287,3246.4,3245.2,3.308156]
[1737667548558,0.15709156,3247.6,3245.9,3.0]
[1737667548762,0.60404545,3246.9,3246.2,3.0]
[1737667549631,0.60404545,3246.9,3245.7,6.08094]
[1737667549837,0.60404545,3246.9,3245.8,3.08087]
[1737667550070,0.60404545,3246.9,3245.9,3.0]
[1737667550273,0.08337389,3247.6,3246.7,3.0]
[1737667550632,0.08337389,3247.6,3245.8,0.55]
[1737667550975,0.08337389,3247.6,3246.3,3.0]
[1737667551148,0.08337389,3247.6,3245.8,6.0809]
[1737667551342,0.08337389,3247.6,3246.0,0.55]
[1737667551571,0.08337389,3247.6,3246.2,3.0]
[1737667551770,0.08337389,3247.6,3247.3,3.0]
[1737667551936,0.08337389,3247.6,3247.1,3.0]
[1737667552346,0.08337389,3247.6,3246.8,3.0]
[1737667552745,0.08337389,3247.6,3246.6,3.0]
[1737667552975,0.08337389,3247.6,3246.2,3.08043]
[1737667553206,0.08337389,3247.6,3245.9,3.68881]
[1737667553410,0.55,3247.5,3245.9,3.68881]
[1737667553566,0.55,3247.5,3246.1,3.0]
[1737667553771,0.55,3247.5,3246.0,3.449581]
[1737667554282,0.55,3247.5,3246.1,6.08058]
[1737667554512,0.08337389,3247.6,3246.0,0.368881]
[1737667554805,0.60646393,3247.3,3246.3,3.0]
[1737667555109,0.60646393,3247.3,3246.3,6.0804]
[1737667555260,0.60646393,3247.3,3246.3,3.0]
[1737667555466,0.08337389,3247.6,3246.5,3.0]
[1737667555805,0.08337389,3247.6,3245.2,4.196156]
[1737667555806,0.08337389,3247.6,3246.9,3.0]
[1737667555963,0.08337389,3247.6,3246.9,3.91599]
[1737667556305,0.08337389,3247.6,3247.1,3.0]
[1737667556467,0.08337389,3247.6,3246.9,3.91599]
[1737667556919,0.08337389,3247.6,3246.5,3.0]
[1737667557106,0.08337389,3247.6,3246.8,3.07995]
[1737667558010,0.08337389,3247.6,3246.9,6.07982]
[1737667558626,0.08337389,3247.6,3247.0,3.07975]
[1737667558802,0.08337389,3247.6,3247.1,3.0]
[1737667558999,0.08337389,3247.6,3247.1,3.687631]
[1737667559214,0.08337389,3247.6,3247.4,3.0]
[1737667559399,0.08337389,3247.6,3247.2,3.07956]
[1737667559717,0.08337389,3247.6,3247.1,0.607971]
[1737667559923,0.08337389,3247.6,3247.0,3.0797]
[1737667560088,0.08337389,3247.6,3247.1,6.07959]
[1737667560292,0.08337389,3247.6,3247.2,3.07953]
[1737667560701,0.08337389,3247.6,3247.1,6.07959]
[1737667560903,0.08337389,3247.6,3246.7,3.07999]
[1737667561112,0.08337389,3247.6,3246.3,3.08041]
[1737667561311,0.08337389,3247.6,3245.8,3.08082]
[1737667561644,0.08337389,3247.6,3246.5,3.0]
[1737667562047,0.08337389,3247.6,3246.7,3.0]
[1737667562261,0.08337389,3247.6,3246.5,3.0]
[1737667562533,0.63041837,3247.4,3246.2,3.0805]
[1737667562831,0.63041837,3247.4,3245.9,0.389492]
[1737667563042,0.63041837,3247.4,3246.5,3.0]
[1737667563997,0.08337389,3247.6,3246.9,3.0]
[1737667564824,0.08337389,3247.6,3246.8,3.0]
[1737667565523,0.08337389,3247.6,3246.0,3.0]
[1737667565722,0.08337389,3247.6,3246.8,3.07994]
[1737667566035,0.08337389,3247.6,3246.9,3.0]
[1737667566937,0.08337389,3247.6,3246.7,3.0]
[1737667567234,0.08337389,3247.6,3246.0,3.55]
[1737667567436,0.08337389,3247.6,3246.9,3.0]
[1737667568557,0.08337389,3247.6,3246.3,3.0]
[1737667568773,0.08337389,3247.6,3247.5,6.07929]
[1737667568982,0.15236344,3249.1,3247.0,3.07974]
[1737667568983,0.30304074,3248.6,3247.7,3.0]
[1737667569277,0.30304074,3248.6,3247.5,3.0]
[1737667570274,0.30304074,3248.6,3247.9,3.07886]
[1737667570482,2.79688893,3250.1,3248.2,3.0]
[1737667570778,0.6294488,3248.9,3248.2,3.0]
[1737667570974,0.6294488,3248.9,3248.2,3.37862]
[1737667571157,0.6294488,3248.9,3247.8,3.07899]
[1737667571367,0.6294488,3248.9,3248.1,3.07871]
[1737667571565,2.96392793,3251.3,3248.9,3.0]
[1737667571749,0.167039,3251.3,3249.7,3.07719]
[1737667571953,0.61226186,3250.8,3248.9,3.0]
[1737667572136,0.167039,3251.3,3250.0,6.07683]
[1737667572483,0.167039,3251.3,3250.2,3.0]
[1737667572484,0.771231,3251.3,3250.2,3.0]
[1737667572640,0.771231,3251.3,3250.5,3.07642]
[1737667572841,0.771231,3251.3,3250.4,3.0]
[1737667573368,0.167039,3251.3,3250.4,3.0]
[1737667574464,0.167039,3251.3,3250.4,3.07651]
[1737667574778,0.167039,3251.3,3250.5,3.0]
[1737667574981,0.167039,3251.3,3250.4,3.0]
[1737667575684,0.167039,3251.3,3250.2,3.0]
[1737667576091,0.167039,3251.3,3249.4,3.07748]
[1737667576262,0.167039,3251.3,3249.5,3.07737]
[1737667576661,0.167039,3251.3,3249.0,3.99338]
[1737667576862,0.55,3251.2,3249.0,3.07777]
[1737667577093,0.55,3250.9,3248.9,3.07792]
[1737667577297,0.55,3250.9,3248.9,3.07788]
[1737667577501,3.2232227,3251.0,3249.0,3.0]
[1737667577699,0.55,3251.2,3249.0,3.07782]
[1737667577859,0.55,3251.2,3249.1,0.307782]
[1737667578059,0.61327647,3250.2,3249.1,0.307782]
[1737667578259,0.61327647,3250.2,3249.1,3.307782]
[1737667578990,0.61327647,3250.2,3248.8,3.07804]
[1737667579184,0.61327647,3250.2,3248.5,3.07827]
[1737667579391,0.61327647,3250.2,3248.6,3.0]
[1737667579587,0.61327647,3250.2,3248.4,0.8306]
[1737667579903,0.61327647,3250.2,3248.6,6.07824]
[1737667580201,0.61327647,3250.2,3248.6,6.686064]
[1737667580562,0.61327647,3250.2,3248.9,3.0]
[1737667580997,0.32317991,3251.3,3248.6,0.607824]
[1737667581200,0.32317991,3251.3,3249.5,3.0]
[1737667581611,0.61970079,3250.7,3249.5,3.0]
[1737667581812,0.32317991,3251.3,3249.3,6.07758]
[1737667581965,0.167039,3251.3,3249.7,3.0]
[1737667582160,0.60086602,3250.9,3249.7,3.0]
[1737667582367,0.167039,3251.3,3250.0,3.0]
[1737667582594,0.167039,3251.3,3250.0,3.07689]
[1737667583207,0.61865441,3251.2,3250.0,3.07689]
[1737667584060,0.167039,3251.3,3249.8,0.607721]
[1737667584211,0.167039,3251.3,3249.9,3.0]
[1737667584547,0.167039,3251.3,3250.6,3.0]
[1737667584926,0.167039,3251.3,3249.8,3.07705]
[1737667585165,0.167039,3251.3,3250.5,3.0]
[1737667585365,0.167039,3251.3,3250.2,6.07669]
[1737667585664,0.167039,3251.3,3249.6,0.7778]
[1737667585665,0.167039,3251.3,3250.1,3.07681]
[1737667585863,0.167039,3251.3,3249.7,3.07719]
[1737667586011,0.167039,3251.3,3250.0,3.07691]
[1737667586214,0.167039,3251.3,3250.2,3.0]
[1737667586481,0.167039,3251.3,3250.1,3.0]
[1737667586985,0.167039,3251.3,3249.6,3.07729]
[1737667587110,0.167039,3251.3,3249.7,3.0772]
[1737667587313,0.167039,3251.3,3249.7,3.38492]
[1737667587809,0.167039,3251.3,3249.8,3.0]
[1737667588015,0.167039,3251.3,3250.0,3.0]
[1737667588209,0.167039,3251.3,3250.0,3.07691]
[1737667588710,0.167039,3251.3,3250.2,3.0]
[1737667589026,0.167039,3251.3,3250.2,0.607675]
[1737667589223,0.167039,3251.3,3250.0,3.07691]
[1737667589970,0.167039,3251.3,3250.3,3.07662]
[1737667590453,0.167039,3251.3,3250.2,3.0]
[1737667591151,0.167039,3251.3,3250.4,3.07648]
[1737667591352,0.167039,3251.3,3250.1,3.8101]
[1737667591353,0.167039,3251.3,3250.7,3.07625]
[1737667591527,0.167039,3251.3,3250.8,3.0]
[1737667591739,0.167039,3251.3,3250.7,0.915269]
[1737667592328,0.167039,3251.3,3250.6,3.0]
[1737667592531,0.167039,3251.3,3250.4,3.0]
[1737667592732,0.167039,3251.3,3250.6,3.0]
[1737667592942,0.167039,3251.3,3250.2,3.0]
[1737667593153,0.167039,3251.3,3250.4,3.0]
[1737667593314,0.167039,3251.3,3250.4,6.984167]
[1737667593656,0.167039,3251.3,3250.4,0.907657]
[1737667593816,0.167039,3251.3,3250.2,6.07669]
[1737667594025,0.167039,3251.3,3250.4,3.07654]
[1737667594221,0.167039,3251.3,3250.6,3.0]
[1737667594752,0.167039,3251.3,3250.2,3.0]
[1737667594952,0.167039,3251.3,3249.9,3.0]
[1737667595115,0.167039,3251.3,3250.1,3.0]
[1737667595315,0.167039,3251.3,3250.0,0.607705]
[1737667595634,0.61363013,3251.2,3250.0,0.607705]
[1737667595839,0.61363013,3251.2,3250.1,3.0]
[1737667596356,0.61363013,3251.2,3250.0,0.607705]
[1737667596559,0.61363013,3251.2,3250.0,6.07687]
[1737667597444,0.61363013,3251.2,3249.8,3.0771]
[1737667597825,0.61363013,3251.2,3249.9,3.0]
[1737667598283,0.61363013,3251.2,3250.0,3.07691]
[1737667598554,0.61363013,3251.2,3250.0,3.0]
[1737667598723,0.61363013,3251.2,3249.7,3.30772]
[1737667599125,0.61363013,3251.2,3249.9,6.077]
[1737667599354,0.61363013,3251.2,3249.7,3.30772]
[1737667599661,0.61363013,3251.2,3249.7,6.38492]
[1737667600159,0.61363013,3251.2,3249.7,0.30772]
[1737667600460,0.61363013,3251.2,3249.6,3.0]
[1737667600663,0.61363013,3251.2,3249.5,3.07739]
[1737667600832,0.55,3251.2,3249.3,6.15502]
[1737667601038,0.55,3251.2,3249.4,3.0]
[1737667601351,3.34081321,3251.2,3249.4,6.07746]
[1737667601548,0.61335876,3250.6,3249.4,3.915497]
[1737667601754,0.61335876,3250.6,3249.1,3.0]
[1737667602070,0.61335876,3250.6,3249.0,3.07785]
[1737667602275,0.61335876,3250.6,3249.1,3.07775]
[1737667602576,0.61335876,3250.6,3249.2,3.07761]
[1737667602761,0.61335876,3250.6,3249.4,3.07745]
[1737667602937,0.167039,3251.3,3249.4,3.07745]
[1737667602938,0.167039,3251.3,3249.7,3.07719]
[1737667603137,0.61022058,3250.8,3249.9,3.0]
[1737667603375,0.61022058,3250.8,3249.5,3.0]
[1737667603546,0.61022058,3250.8,3249.3,3.0]
[1737667603746,0.61022058,3250.8,3249.3,6.7460611]
[1737667603974,0.61022058,3250.8,3249.4,3.07748]
[1737667604974,0.61022058,3250.8,3249.3,3.6685411]
[1737667605170,0.61022058,3250.8,3249.5,3.0]
[1737667605372,0.61022058,3250.8,3249.7,3.07715]
[1737667605668,0.61022058,3250.8,3249.8,0.307715]
[1737667605871,0.61022058,3250.8,3249.7,3.07715]
[1737667606072,0.61022058,3250.8,3249.3,0.6685411]
[1737667606073,0.61022058,3250.8,3249.6,3.07726]
[1737667606251,0.61022058,3250.8,3249.9,3.0]
[1737667606645,0.61022058,3250.8,3249.9,6.077]
[1737667608494,0.61022058,3250.8,3249.9,3.07701]
[1737667608775,0.167039,3251.3,3250.0,3.07688]
[1737667608949,0.167039,3251.3,3250.1,3.0]
[1737667609158,0.167039,3251.3,3250.3,3.0766]
[1737667609361,0.167039,3251.3,3250.4,3.07647]
[1737667609540,0.167039,3251.3,3250.7,3.0]
[1737667609878,0.167039,3251.3,3250.0,0.7909]
[1737667610077,0.167039,3251.3,3251.2,3.07578]
[1737667610297,0.167039,3251.3,3251.2,6.383358]
[1737667611194,0.61089794,3252.6,3251.9,3.07511]
[1737667611398,2.79081321,3253.6,3251.8,3.0]
[1737667611738,0.60215939,3252.7,3251.8,3.0]
[1737667612060,0.60215939,3252.7,3251.8,3.0752]
[1737667612260,0.60215939,3252.7,3251.8,0.30752]
[1737667613239,0.60215939,3252.7,3251.8,3.30752]
[1737667613651,2.79081321,3254.0,3252.2,3.07483]
[1737667613851,1.55862587,3253.9,3252.2,3.07483]
[1737667614265,1.55862587,3253.9,3252.2,3.07479]
[1737667614466,1.89575688,3253.9,3252.3,3.0]
[1737667614668,0.62659039,3252.8,3252.3,3.0]
[1737667616195,0.33713101,3253.9,3252.2,0.61498]
[1737667616391,0.15264029,3254.0,3252.3,3.07472]
[1737667616593,0.55,3254.2,3252.2,3.68981]
[1737667616793,2.79081321,3254.0,3252.3,0.368981]
[1737667617201,3.12794422,3254.0,3252.3,0.368981]
[1737667617370,3.12794422,3254.0,3252.3,3.443701]
[1737667617371,0.6056693,3253.2,3252.3,3.443701]
[1737667617556,0.33713101,3254.0,3252.4,0.8269]
[1737667617761,0.61655291,3253.6,3253.0,3.0]
[1737667618091,0.61655291,3253.6,3253.1,0.607409]
[1737667618481,0.61655291,3253.6,3252.4,0.8269]
[1737667618693,0.167039,3254.5,3253.2,3.07387]
[1737667618894,0.62743651,3254.1,3253.0,3.07406]
[1737667619411,0.62743651,3254.1,3252.6,3.07443]
[1737667619556,2.79081321,3252.9,3250.7,3.07617]
[1737667619924,2.79081321,3252.9,3250.0,3.90638]
[1737667619925,0.51499495,3252.8,3251.0,3.21578005]
[1737667620216,0.51499495,3252.8,3251.3,3.0]
[1737667620688,0.62307077,3252.7,3251.0,6.29173005]
[1737667620895,0.62307077,3252.7,3251.2,3.07569]
[1737667621098,0.30744,3252.6,3251.3,3.0]
[1737667621304,0.3075,3252.0,3251.4,0.607569]
[1737667621503,0.3075,3252.0,3251.3,6.07567]
[1737667622081,0.30751,3251.9,3251.3,3.0]
[1737667622277,0.30758,3251.1,3251.0,3.21578005]
[1737667622492,0.30765,3250.4,3249.3,0.7934]
[1737667622692,0.30769,3250.1,3249.3,0.7934]
[1737667622892,0.30769,3250.1,3249.2,3.0]
[1737667623096,0.30771,3249.8,3249.3,0.3]
[1737667623297,0.30771,3249.8,3248.9,0.7934]
[1737667623513,0.30771,3249.8,3249.1,1.28069085]
[1737667623514,0.30777,3249.2,3249.1,1.28069085]
[1737667624392,3.0,3249.3,3246.9,1.42671212]
[1737667624729,0.30794,3247.4,3246.9,0.63261212]
[1737667625034,0.30798,3246.9,3246.8,0.32012799]
[1737667625182,0.308,3246.8,3245.8,3.87498]
[1737667625377,0.308,3246.8,3245.9,0.387498]
[1737667625686,0.30797,3247.1,3245.8,0.7941]
[1737667625878,0.30797,3247.1,3246.2,3.0]
[1737667626084,0.30798,3246.9,3246.0,3.0]
[1737667626407,0.30797,3247.1,3246.0,3.08069]
[1737667626744,0.30791,3247.7,3246.7,3.0]
[1737667627023,0.30789,3247.9,3246.8,0.608013]
[1737667627024,0.30792,3247.6,3246.8,0.608013]
[1737667627232,0.61416944,3247.8,3246.8,0.608013]
[1737667627385,0.30792,3247.5,3246.8,0.608013]
[1737667627588,0.30794,3247.4,3246.8,0.608013]
[1737667627786,0.30794,3247.4,3246.7,3.0]
[1737667628918,0.30788,3248.0,3246.7,6.08004]
[1737667629120,0.30788,3248.0,3247.0,3.07976]
[1737667629345,0.30786,3248.2,3247.2,3.0]
[1737667629625,0.30787,3248.1,3247.4,3.0]
[1737667629782,0.30785,3248.3,3247.4,8.53617585]
[1737667629986,0.30785,3248.3,3247.4,5.45680585]
[1737667630386,0.30786,3248.2,3247.4,3.0]
[1737667630725,0.30786,3248.2,3247.6,3.0]
[1737667630880,0.30785,3248.3,3247.6,3.0]
[1737667631609,0.30786,3248.2,3247.6,3.0]
[1737667631918,0.30785,3248.3,3247.6,3.0]
[1737667632986,0.30783,3248.6,3247.7,3.07908]
[1737667633183,0.30791,3247.6,3246.4,3.8624]
[1737667633436,0.30791,3247.6,3246.5,3.08024]
[1737667633643,0.30791,3247.6,3246.8,3.0]
[1737667634207,0.30791,3247.6,3246.8,6.07993]
[1737667634451,0.30791,3247.6,3246.9,0.915994]
[1737667634658,0.30789,3247.9,3246.9,3.995834]
[1737667635258,0.30802,3246.6,3245.7,3.89219]
[1737667635424,0.30802,3246.6,3245.7,0.8112]
[1737667635625,0.30804,3246.3,3245.3,3.08132]
[1737667635993,0.30804,3246.4,3245.5,3.08118]
[1737667636253,0.30804,3246.4,3245.4,6.08119]
[1737667636461,0.30804,3246.4,3245.5,0.916251]
[1737667636944,0.30801,3246.6,3245.6,3.08101]
[1737667637310,0.30806,3246.1,3245.3,3.08137]
[1737667637511,0.30808,3245.9,3244.8,3.08185]
[1737667637776,0.30808,3245.9,3245.1,3.08155]
[1737667637906,0.30808,3245.9,3244.8,3.08185]
[1737667637907,0.30811,3245.6,3244.8,3.08185]
[1737667638475,3.84225632,3246.7,3244.7,3.0]
[1737667638476,3.23304143,3246.2,3244.7,3.0]
[1737667638742,0.61125846,3246.2,3245.1,3.0]
[1737667638943,0.30808,3245.9,3245.1,3.08151]
[1737667639143,0.30806,3246.1,3245.2,3.08144]
[1737667639443,0.30807,3246.0,3245.2,3.08144]
[1737667640017,0.30803,3246.5,3245.2,3.0]
[1737667640269,0.30803,3246.5,3245.4,3.08119]
[1737667640270,0.30805,3246.2,3245.4,3.08119]
[1737667640408,0.30803,3246.5,3245.4,3.08119]
[1737667640611,0.30806,3246.1,3245.4,0.616265]
[1737667641349,0.30806,3246.1,3245.3,6.08132]
[1737667641516,0.30809,3245.8,3244.0,3.08254]
[1737667641725,3.23304143,3245.5,3243.4,0.8147]
[1737667641924,0.30814,3245.2,3243.7,3.08289]
[1737667642109,0.30814,3245.2,3243.8,3.391069]
[1737667642110,0.30821,3244.6,3243.8,3.391069]
[1737667642618,0.30818,3244.8,3243.8,0.308289]
[1737667642820,0.30818,3244.8,3243.8,3.08278]
[1737667643049,0.30818,3244.8,3244.0,3.08253]
[1737667643582,0.30819,3244.7,3244.0,3.08253]
[1737667643847,0.30817,3244.9,3244.1,3.08247]
[1737667644047,0.30818,3244.9,3244.2,3.08242]
[1737667644230,0.30818,3244.8,3244.1,3.08248]
[1737667645207,0.62031551,3245.3,3244.2,3.0]